Workbook

Sheet Критерии оценки
B2: Мероприятие | D2: Региональный этап Чемпионата по профессиональному мастерству "Профессионалы" в 2026 г
B3: Наименование компетенции | D3: Администрирование отеля (основная)
A5: Код | B5: Подкритерий | C5: Тип аспекта | D5: Аспект | E5: Судейский балл | F5: Методика проверки аспекта | G5: Требование или номинальный размер | H5: Проф. задача | I5: Макс.балл
A6: А | B6: Заезд. Бронирование по телефону | I6: =SUM(I7:I107) -> 15.50
A7: 1 | B7: Заезд
C8: И | D8: Внешний вид и форма соответствуют требованиям профессии | H8: 1 | I8: 0.50 | K8: 1 | L8: =SUMIF(H8:H107,1,I8:I107) -> 1.70
C9: И | D9: Доброе утро/день/вечер, чем могу помочь? | H9: 2 | I9: 0.10 | K9: 2 | L9: =SUMIF(H8:H107,2,I8:I107) -> 4.10
C10: И | D10: Предпринимает верные действия по запросу гостя | H10: 5 | I10: 0.30 | K10: 3 | L10: =SUMIF(H8:H107,3,I8:I107) -> 2.90
C11: И | D11: Просит предоставить документы, удостоверяющие личность гостя | H11: 4 | I11: 0.20 | K11: 4 | L11: =SUMIF(H8:H107,4,I8:I107) -> 2.10
C12: И | D12: Подтверждает детали бронирования (тип номера, тип кровати, на чье имя, даты, кол-во гостей, пакеты питания, входящие в стоимость) | H12: 4 | I12: 0.30 | K12: 5 | L12: =SUMIF(H8:H107,5,I8:I107) -> 2.80
C13: И | D13: Спрашивает, может ли сделать копию соответствующих документов | H13: 4 | I13: 0.30 | K13: 6 | L13: =SUMIF(H8:H107,6,I8:I107) -> 1.30
C14: И | D14: Делает необходимые копии соответствующих документов | H14: 4 | I14: 0.30 | K14: 7 | L14: =SUMIF(H8:H107,7,I8:I107) -> 0.00
C15: И | D15: Регистрационная форма заполнена корректно и подписана | H15: 4 | I15: 0.30 | K15: 8 | L15: =SUMIF(H8:H107,8,I8:I107) -> 0.20
C16: И | D16: Возвращает документы гостя | H16: 4 | I16: 0.30 | K16: 9 | L16: =SUMIF(H8:H107,9,I8:I107) -> 0.40
C17: И | D17: Отдает гостю ключ и корректно заполненную карту гостя | H17: 4 | I17: 0.20
C18: И | D18: Информирует о месторасположении комнаты (floor only) | H18: 4 | I18: 0.20
C19: И | D19: Информирует о расписании завтрака и расположении ресторана, Wi-Fi | H19: 5 | I19: 0.20
C20: И | D20: Информирует об услугах, входящих в стоимость проживания и платных услугах | H20: 5 | I20: 0.20
C21: И | D21: Сообщает гостю, что стойка размещения доступна 24 часа в сутки (или номер ресепшн) | H21: 5 | I21: 0.20
C22: И | D22: Спрашивает, нужна ли помощь с багажом | H22: 2 | I22: 0.10
C23: И | D23: Спрашивает, может ли он чем-то еще помочь | H23: 2 | I23: 0.20
C24: И | D24: Корретно отвечает на вопросы гостя | H24: 5 | I24: 0.50
C25: И | D25: Корректно помогает гостю заказать услугу | H25: 6 | I25: 0.30
C26: И | D26: Желает хорошего дня/приятного проживания | H26: 2 | I26: 0.10
C27: И | D27: Время общения с гостем оптимально | H27: 9 | I27: 0.20
C28: И | D28: Обращался к гостю по имени не менее 3-х раз | H28: 2 | I28: 0.20
C29: С | D29: Общение с гостем (small talk) | H29: 2 | I29: 0.50
E30: 0 | F30: общения нет или неподобающий тон
E31: 1 | F31: почти не общается или невежливо
E32: 2 | F32: останавливались ли вы у нас раньше / с возвращением и т.п.
E33: 3 | F33: превосходит ожидания гостя
C34: С | D34: Уверенность в диалоге | H34: 2 | I34: 0.50
E35: 0 | F35: не уверен, невнимателен, в состоянии стресса
E36: 1 | F36: неуверен в диалоге
E37: 2 | F37: уверен, есть зрительный контакт
E38: 3 | F38: уверен, есть зрительный контакт, улыбка, харизма
C39: С | D39: Продвижение услуг отеля (платные) | H39: 6 | I39: 0.50
E40: 0 | F40: не продвигает, не упоминает услуги отеля или предлагает неуместные услуги
E41: 1 | F41: дает крайне мало информации об услугах
E42: 2 | F42: информирует об услугах в нужном объеме, уместно
E43: 3 | F43: информирует гостя, продвигая услуги отеля
C44: С | D44: Выполнение задания согласно условиям ситуации | H44: 1 | I44: 0.50
E45: 0 | F45: не справляется
E46: 1 | F46: плохо справляется
E47: 2 | F47: справляется хорошо
E48: 3 | F48: превосходит ожидания, отличная адаптация к ситуации
C49: С | D49: Грамотность русской речи | H49: 2 | I49: 0.50
E50: 0 | F50: непрофессиональный тон, сленг, множество ошибок
E51: 1 | F51: допускает незначительные ошибки
E52: 2 | F52: говорит без ошибок
E53: 3 | F53: профессиональный тон, четкая структура, отсутствие ошибок
A54: 2 | B54: Бронирование по телефону
C55: И | D55: Доброе утро/день/вечер, название отеля, имя, чем могу помочь? | H55: 2 | I55: 0.10
C56: И | D56: Уточняет имя гостя | H56: 5 | I56: 0.10
C57: И | D57: Уточняет даты бронирования, категория, количество гостей, время заезда | H57: 3 | I57: 0.20
C58: И | D58: Уточняет, есть ли у гостя особые пожелания к размещению | H58: 3 | I58: 0.10
C59: И | D59: Просит оставаться на линии, чтобы уточнить наличие номеров | H59: 2 | I59: 0.10
C60: И | D60: Предлагает варианты на интересующие даты | H60: 3 | I60: 0.20
C61: И | D61: Корректно отвечает на вопрос/просьбу гостя | H61: 5 | I61: 0.30
C62: И | D62: Уточняет необходимость включения в проживание пакетов питания (ВВ,НВ,FВ) | H62: 3 | I62: 0.20
C63: И | D63: Корректно регистрирует в АСУ включенные в проживание пакеты питания (ВВ,НВ,FВ) | H63: 3 | I63: 0.30
C64: И | D64: Верно называет общую стоимость проживания с учетом пакетов питания | H64: 3 | I64: 0.30
C65: И | D65: Корректно записывает ФИ гостя, контактный телефон и адрес электронной почты | H65: 3 | I65: 0.20
C66: И | D66: Корректно сообщает об особенностях заезда в соответствии с запросом | H66: 3 | I66: 0.30
C67: И | D67: Корректно информирует о стандартном времени заезда и правилах отмены бронирования | H67: 3 | I67: 0.30
C68: И | D68: Уточняет, желает ли гость прогарантировать бронирование, корректно сообщает об особенностях гарантированного бронировании | H68: 5 | I68: 0.30
C69: И | D69: Сверяет полученные детали бронирования (тип номера, тип кровати, на чье имя, даты, кол-во гостей, пакеты питания, общая стоимость, с учетом пакетов питания, время заезда) | H69: 3 | I69: 0.20
C70: И | D70: Спрашивает, может ли он чем-то помочь | H70: 2 | I70: 0.10
C71: И | D71: Корректно отвечает на вопрос гостя | H71: 5 | I71: 0.20
C72: И | D72: Передает полученную информацию коллегам одной из служб отеля | H72: 1 | I72: 0.20
C73: И | D73: Благодарит за звонок / выбор отеля и заканчивает разговор | H73: 2 | I73: 0.10
C74: И | D74: Отмечены в брони все запросы/заказы гостя | H74: 3 | I74: 0.30
C75: И | D75: Время общения с гостем оптимально | H75: 9 | I75: 0.20
C76: И | D76: Администратор обращался к гостю по имени не менее 3-х раз | H76: 3 | I76: 0.30
C77: И | D77: Рабочее место приведено в порядок | H77: 8 | I77: 0.20
C78: С | D78: Ориентирование в услугах отеля, уверенность в диалоге | H78: 5 | I78: 0.50
E79: 0 | F79: не уверен, не внимателен.
E80: 1 | F80: плохие знания, не уверен
E81: 2 | F81: хорошее знание, уверен
E82: 3 | F82: уверенность, внимание к деталям, улыбка, харизма
C83: С | D83: Продвижение услуг отеля (платных) | H83: 6 | I83: 0.50
E84: 0 | F84: не продвигает, не упоминает услуги отеля или предлагает неуместные услуги
E85: 1 | F85: дает крайне мало информации об услугах
E86: 2 | F86: информирует об услугах в нужном объеме, уместно
E87: 3 | F87: информирует гостя, продвигая услуги отеля
C88: С | D88: Выполнение задания согласно условиям ситуации | H88: 1 | I88: 0.50
E89: 0 | F89: не справляется
E90: 1 | F90: плохо справляется
E91: 2 | F91: справляется хорошо
E92: 3 | F92: превосходит ожидания, эффективно, отличная адаптация к ситуации
C93: С | D93: Грамматика | H93: 2 | I93: 0.50
E94: 0 | F94: совершенно не знает правил грамматики
E95: 1 | F95: большое количество ошибок
E96: 2 | F96: допускает незначительные ошибки
E97: 3 | F97: говорит без ошибок
C98: С | D98: Свобода общения на ин. языке | H98: 2 | I98: 0.50
E99: 0 | F99: не может говорить, не понят
E100: 1 | F100: общается с трудом
E101: 2 | F101: общается без затруднений
E102: 3 | F102: общается абсолютно свободно
C103: С | D103: Произношение | H103: 2 | I103: 0.50
E104: 0 | F104: множество артикуляционных ошибок
E105: 1 | F105: артикуляция с ошибками
E106: 2 | F106: артикуляция без ошибок
E107: 3 | F107: артикуляция без ошибок, корректное интонирование
A108: Б | B108: Помощь гостю во время проживания. Заселение гостя без бронирования (Walk-in) | I108: =SUM(I109:I201) -> 14.30
A109: 1 | B109: Помощь гостю во время проживания
C110: И | D110: Внешний вид и форма соответствуют требованиям профессии | H110: 1 | I110: 0.50 | K110: 1 | L110: =SUMIF(H110:H186,1,I110:I186) -> 1.5
C111: И | D111: Доброе утро/день/вечер, чем могу помочь? | H111: 2 | I111: 0.20 | K111: 2 | L111: =SUMIF(H110:H201,2,I110:I201) -> 5
C112: И | D112: Уточняет имя и номер комнаты | H112: 5 | I112: 0.20 | K112: 3 | L112: =SUMIF(H110:H186,3,I110:I186) -> 0.3
C113: И | D113: Уточняет у гостя запрос / детали (задает наводящие вопросы) | H113: 2 | I113: 0.30 | K113: 4 | L113: =SUMIF(H110:H186,4,I110:I186) -> 3
C114: И | D114: Рекомендует не менее 2 локаций, интересующих гостя | H114: 5 | I114: 0.40 | K114: 5 | L114: =SUMIF(H110:H186,5,I110:I186) -> 3.2
C115: И | D115: Указывает на карте местоположение локаций, делает необходимые пометки (адрес, название) | H115: 5 | I115: 0.30 | K115: 6 | L115: =SUMIF(H110:H186,6,I110:I186) -> 0.5
C116: И | D116: Рассказывает каким способом можно добраться (такси / общественный транспорт и т.д.), | H116: 5 | I116: 0.30 | K116: 7 | L116: =SUMIF(H110:H186,7,I110:I186) -> 0
C117: И | D117: Корректно реагирует на вопрос о гостя | H117: 5 | I117: 0.20 | K117: 8 | L117: =SUMIF(H110:H186,8,I110:I186) -> 0.4
C118: И | D118: Выполняет действия согласно запросу гостей | H118: 5 | I118: 0.40 | K118: 9 | L118: =SUMIF(H110:H186,9,I110:I186) -> 0.4
C119: И | D119: Спрашивает как проходит проживание | H119: 2 | I119: 0.20
C120: И | D120: Спрашивает, может ли еще чем-нибудь помочь | H120: 2 | I120: 0.10
C121: И | D121: Время общения с гостем оптимально | H121: 9 | I121: 0.20
C122: И | D122: Администратор обращался к гостям по имени не менее 3-х раз | H122: 2 | I122: 0.20
C123: С | D123: Уверенность в диалоге | H123: 2 | I123: 0.30
E124: 0 | F124: не уверен, невнимателен, в состоянии стресса
E125: 1 | F125: не уверен
E126: 2 | F126: уверен
E127: 3 | F127: уверен, внимателен к гостю, берет ситуацию под контроль
C128: С | D128: Предоставление информации гостю | H128: 5 | I128: 0.50
E129: 0 | F129: не предлагает ничего или дает бесполезную информацию
E130: 1 | F130: дает информацию, не предлагая альтернативу
E131: 2 | F131: дает необходимую информацию, вовлечен в беседу
E132: 3 | F132: дает необходимую информацию, внимание к деталям вовлечен в беседу
C133: С | D133: Выполнение задания согласно условиям ситуации | H133: 1 | I133: 0.50
E134: 0 | F134: не справляется
E135: 1 | F135: плохо справляется
E136: 2 | F136: справляется хорошо
E137: 3 | F137: превосходит ожидания, отличная адаптация к ситуации
C138: С | D138: Грамотность русской речи | H138: 2 | I138: 0.50
E139: 0 | F139: непрофессиональный тон, сленг, множество ошибок
E140: 1 | F140: допускает незначительные ошибки
E141: 2 | F141: говорит без ошибок
E142: 3 | F142: профессиональный тон, четкая структура, отсутствие ошибок
A143: 2 | B143: Заезд без предварительного бронирования (walk-in)
C144: И | D144: Доброе утро/день/вечер, чем могу помочь? | H144: 2 | I144: 0.10
C145: И | D145: Уточняет имя гостя | H145: 2 | I145: 0.20
C146: И | D146: Предлагает варианты для размещения в соответствии с запросом | H146: 3 | I146: 0.30
C147: И | D147: Просит предоставить паспорт | H147: 4 | I147: 0.20
C148: И | D148: Подтверждает детали бронирования (тип номера, тип кровати, даты, кол-во гостей, пакеты питания, входящие в стоимость) | H148: 4 | I148: 0.40
C149: И | D149: Регистрационная форма заполнена корректно и подписана | H149: 4 | I149: 0.30
C150: И | D150: Спрашивает, может ли сделать копию паспорта | H150: 4 | I150: 0.30
C151: И | D151: Делает необходимые копии паспорта | H151: 4 | I151: 0.30
C152: И | D152: Возвращает паспорт | H152: 4 | I152: 0.30
C153: И | D153: Уточняет у гостя, каким способом он будет гарантировать оплату за проживание | H153: 4 | I153: 0.30
C154: И | D154: Просит кредитную карту, проводит карту в терминале (преавторизация) | H154: 4 | I154: 0.30
C155: И | D155: Отдает гостю ключ и корректно заполненную карту гостя | H155: 4 | I155: 0.30
C156: И | D156: Информирует о месторасположении комнаты (floor only) | H156: 4 | I156: 0.30
C157: И | D157: Информирует о расписании завтрака и расположении ресторана, Wi-Fi | H157: 5 | I157: 0.20
C158: И | D158: Информирует об услугах, входящих в стоимость проживания и платных услугах | H158: 5 | I158: 0.30
C159: И | D159: Сообщает гостю, что стойка размещения доступна 24 часа в сутки (или номер ресепшн) | H159: 5 | I159: 0.20
C160: И | D160: Спрашивает, нужна ли помощь с багажом | H160: 2 | I160: 0.20
C161: И | D161: Спрашивает, может ли он чем-то еще помочь | H161: 2 | I161: 0.20
C162: И | D162: Корректно реагирует на запрос гостя | H162: 5 | I162: 0.20
C163: И | D163: Желает хорошего дня / приятного проживания | H163: 2 | I163: 0.20
C164: И | D164: Время общения с гостем оптимально | H164: 9 | I164: 0.20
C165: И | D165: Обращался к гостю по имени не менее 3-х раз | H165: 2 | I165: 0.20
C166: И | D166: Рабочее место приведено в порядок | H166: 8 | I166: 0.40
C167: С | D167: Общение с гостем (small talk) | H167: 2 | I167: 0.30
E168: 0 | F168: общения нет или неподобающий тон
E169: 1 | F169: почти не общается или невежливо
E170: 2 | F170: останавливались ли вы у нас раньше\ с возвращением и т.п.
E171: 3 | F171: превосходит ожидания гостя
C172: С | D172: Уверенность в диалоге | H172: 2 | I172: 0.30
E173: 0 | F173: не уверен, невнимателен, в состоянии стресса
E174: 1 | F174: неуверен в диалоге
E175: 2 | F175: уверен, есть зрительный контакт
E176: 3 | F176: уверен, есть зрительный контакт, улыбка, харизма
C177: С | D177: Продвижение услуг отеля (платных) | H177: 6 | I177: 0.50
E178: 0 | F178: не продвигает, не упоминает услуги отеля или предлагает неуместные услуги
E179: 1 | F179: дает крайне мало информации об услугах
E180: 2 | F180: информирует об услугах в нужном объеме, уместно
E181: 3 | F181: информирует гостя, продвигая услуги отеля
C182: С | D182: Выполнение задания согласно условиям ситуации | H182: 1 | I182: 0.50
E183: 0 | F183: не справляется
E184: 1 | F184: плохо справляется
E185: 2 | F185: справляется хорошо
E186: 3 | F186: превосходит ожидания, эффективно, отличная адаптация к ситуации
C187: С | D187: Грамматика | H187: 2 | I187: 0.50
E188: 0 | F188: совершенно не знает правил грамматики
E189: 1 | F189: большое количество ошибок
E190: 2 | F190: допускает незначительные ошибки
E191: 3 | F191: говорит без ошибок
C192: С | D192: Свобода общения на ин. языке | H192: 2 | I192: 0.50
E193: 0 | F193: не может говорить, не понят
E194: 1 | F194: общается с трудом
E195: 2 | F195: общается без затруднений
E196: 3 | F196: общается абсолютно свободно
C197: С | D197: Произношение | H197: 2 | I197: 0.50
E198: 0 | F198: множество артикуляционных ошибок
E199: 1 | F199: артикуляция с ошибками
E200: 2 | F200: артикуляция без ошибок
E201: 3 | F201: артикуляция без ошибок, корректное интонирование
A202: В | B202: Помощь гостю: предоставление информации об отеле Помощь гостю во время проживания | I202: =SUM(I203:I296) -> 14.80
... 392 more rows

Sheet Перечень профессиональных задач
A1: Перечень профессиональных задач
A2: 1 | B2: Управление
A3: 2 | B3: Межличностное общение с гостями
A4: 3 | B4: Бронирование: Оказание услуг по информированию и выполнение запросов гостей по бронированию в гостиничном комплексе или ином средстве размещения
A5: 4 | B5: Заезд: оказание услуг по приему, регистрации и размещению гостей гостиничного комплекса или иного средства размещения
A6: 5 | B6: Выполнение запросов гостей по услугам в гостиничном комплексе или ином средстве размещения и населенном пункте, в котором он расположен
A7: 6 | B7: Продажа и продвижение услуг гостиничного комплекса или иного средства размещения
A8: 7 | B8: Выезд: оказание услуг по выезду и проводам гостей гостиничного комплекса или иного средства размещения
A9: 8 | B9: Охрана труда
A10: 9 | B10: Бережливое производство
